fUSD/lending_fUSD_20250505
["ID","MTS","AMOUNT","RATE_DAILY","PERIOD"]
[360025804,1746486644760,-589.52,0.00019999,2]
[360025805,1746486644770,-450.0,0.00019999,2]
[360025806,1746486644780,-450.0,0.00019999,2]
[360025807,1746486644789,-450.0,0.00019999,2]
[360025808,1746486644799,-450.0,0.00019999,2]
[360025809,1746486644808,-581.21,0.00019999,2]
[360025810,1746486644819,-450.0,0.00019999,2]
[360025811,1746486644829,-450.0,0.00019999,2]
[360025812,1746486644838,-450.0,0.00019999,2]
[360025813,1746486644847,-450.0,0.00019999,2]
[360025814,1746486644856,-450.0,0.00019999,2]
[360025815,1746486644865,-450.0,0.00019999,2]
[360025816,1746486644875,-450.0,0.00019999,2]
[360025817,1746486644883,-356.07,0.00019999,2]
[360025818,1746486644892,-450.0,0.00019999,2]
[360025819,1746486644901,-450.0,0.00019999,2]
[360025820,1746486644911,-450.0,0.00019999,2]
[360025821,1746486644920,-450.0,0.00019999,2]
[360025822,1746486644929,-450.0,0.00019999,2]
[360025823,1746486644939,-450.0,0.00019999,2]
[360025824,1746486644947,-158.8,0.00019999,2]
[360025825,1746486644957,-220.90000001,0.00019999,2]
[360025826,1746486644966,-450.0,0.00019999,2]
[360025827,1746486644975,-473.72,0.00019999,2]
[360025828,1746486644984,-450.0,0.00019999,2]
[360025829,1746486644993,-266.44407434,0.00019999,2]
[360025830,1746486645002,-450.0,0.00019999,2]
[360025831,1746486645011,-450.0,0.00019999,2]
[360025832,1746486645021,-450.0,0.00019999,2]
[360025833,1746486645030,-151.53,0.00019999,2]
[360025834,1746486645039,-450.0,0.00019999,2]
[360025835,1746486645048,-450.0,0.00019999,2]
[360025836,1746486645058,-450.0,0.00019999,2]
[360025837,1746486645067,-450.0,0.00019999,2]
[360025838,1746486645076,-450.0,0.00019999,2]
[360025839,1746486645086,-450.0,0.00019999,2]
[360025840,1746486645095,-450.0,0.00019999,2]
[360025841,1746486645104,-554.7969361,0.00019999,2]
[360025842,1746486645114,-5745.29,0.00019999,2]
[360025843,1746486645124,-5745.29,0.00019999,2]
[360025844,1746486645133,-5745.29,0.00019999,2]
[360025845,1746486645142,-5745.29,0.00019999,2]
[360025846,1746486645151,-5745.29,0.00019999,2]
[360025847,1746486645161,-5745.29,0.00019999,2]
[360025848,1746486645170,-5745.29,0.00019999,2]
[360025849,1746486645179,-5745.29,0.00019999,2]
[360025850,1746486645187,-5745.29,0.00019999,2]
[360025851,1746486645197,-5745.29,0.00019999,2]
[360025852,1746486645206,-5745.29,0.00019999,2]
[360025853,1746486645215,-450.0,0.00019999,2]
[360025854,1746486645224,-5745.29,0.00019999,2]
[360025855,1746486645233,-5745.29,0.00019999,2]
[360025856,1746486645242,-450.0,0.00019999,2]
[360025857,1746486645251,-5745.29,0.00019999,2]
[360025858,1746486645261,-176.18230561,0.00019999,2]
[360025859,1746486645270,-477.21125576,0.00019999,2]
[360025860,1746486645279,-5745.29,0.00019999,2]
[360025861,1746486645288,-5745.29,0.00019999,2]
[360025862,1746486645298,-5745.29,0.00019999,2]
[360025863,1746486645307,-5745.29,0.00019999,2]
[360025864,1746486645316,-5745.29,0.00019999,2]
[360025865,1746486645326,-5745.29,0.00019999,2]
[360025866,1746486645335,-5745.29,0.00019999,2]
[360025867,1746486645344,-5745.3271,0.00019999,2]
[360025868,1746486645353,-560.15,0.00019999,2]
[360025869,1746486645363,-450.0,0.00019999,2]
[360025870,1746486645372,-450.0,0.00019999,2]
[360025871,1746486645381,-536.29874379,0.00019999,2]
[360025872,1746486645390,-450.0,0.00019999,2]
[360025873,1746486645400,-450.0,0.00019999,2]
[360025874,1746486645409,-450.0,0.00019999,2]
[360025875,1746486645418,-450.0,0.00019999,2]
[360025876,1746486645427,-450.0,0.00019999,2]
[360025877,1746486645436,-450.0,0.00019999,2]
[360025878,1746486645445,-450.0,0.00019999,2]
[360025879,1746486645455,-450.0,0.00019999,2]
[360025880,1746486645464,-450.0,0.00019999,2]
[360025881,1746486645473,-450.0,0.00019999,2]
[360025882,1746486645482,-450.0,0.00019999,2]
[360025883,1746486645492,-450.0,0.00019999,2]
[360025884,1746486645501,-450.0,0.00019999,2]
[360025885,1746486645510,-450.0,0.00019999,2]
[360025886,1746486645519,-450.0,0.00019999,2]
[360025887,1746486645528,-308.62,0.00019999,2]
[360025888,1746486645537,-450.0,0.00019999,2]
[360025889,1746486645546,-450.0,0.00019999,2]
[360025890,1746486645555,-450.0,0.00019999,2]
[360025891,1746486645565,-450.0,0.00019999,2]
[360025892,1746486645575,-450.0,0.00019999,2]
[360025893,1746486645584,-450.0,0.00019999,2]
[360025894,1746486645595,-450.0,0.00019999,2]
[360025895,1746486645606,-520.45,0.00019999,2]
[360025896,1746486645618,-450.0,0.00019999,2]
[360025897,1746486645627,-450.0,0.00019999,2]
[360025898,1746486645636,-450.0,0.00019999,2]
[360025899,1746486645645,-450.0,0.00019999,2]
[360025900,1746486645656,-450.0,0.00019999,2]
[360025901,1746486645666,-450.0,0.00019999,2]
[360025902,1746486645675,-450.0,0.00019999,2]
[360025903,1746486645685,-450.0,0.00019999,2]
[360025904,1746486645694,-362.01115913,0.00019999,2]
[360025905,1746486645705,-450.0,0.00019999,2]
[360025906,1746486645714,-450.0,0.00019999,2]
[360025907,1746486645725,-450.0,0.00019999,2]
[360025908,1746486645734,-450.0,0.00019999,2]
[360025909,1746486645743,-416.18,0.00019999,2]
[360025910,1746486645868,-450.0,0.00019999,2]
[360025911,1746486645881,-450.0,0.00019999,2]
[360025912,1746486645893,-470.0,0.00019999,2]
[360025913,1746486645906,-450.0,0.00019999,2]
[360025914,1746486645915,-450.0,0.00019999,2]
[360025915,1746486645925,-450.0,0.00019999,2]
[360025916,1746486645935,-383.1,0.00019999,2]
[360025917,1746486645944,-450.0,0.00019999,2]
[360025918,1746486645953,-450.0,0.00019999,2]
[360025919,1746486645962,-450.0,0.00019999,2]
[360025920,1746486645972,-450.0,0.00019999,2]
[360025921,1746486645981,-519.29,0.00019999,2]
[360025922,1746486645990,-450.0,0.00019999,2]
[360025923,1746486645999,-450.0,0.00019999,2]
[360025924,1746486646009,-450.0,0.00019999,2]
[360025925,1746486646018,-450.0,0.00019999,2]
[360025926,1746486646027,-450.0,0.00019999,2]
[360025927,1746486646039,-450.0,0.00019999,2]
[360025928,1746486646050,-450.0,0.00019999,2]
[360025929,1746486646060,-450.0,0.00019999,2]
[360025930,1746486646069,-170.58,0.00019999,2]
[360025931,1746486646078,-450.0,0.00019999,2]
[360025932,1746486646089,-450.0,0.00019999,2]
[360025933,1746486646100,-410.94,0.00019999,2]
[360025934,1746486646110,-450.0,0.00019999,2]
[360025935,1746486646121,-450.0,0.00019999,2]
[360025936,1746486646130,-450.0,0.00019999,2]
[360025937,1746486646139,-292.99,0.00019999,2]
[360025938,1746486646149,-450.0,0.00019999,2]
[360025939,1746486646158,-450.0,0.00019999,2]
[360025940,1746486646168,-450.0,0.00019999,2]
[360025941,1746486646177,-544.0,0.00019999,2]
[360025942,1746486646186,-747.07047896,0.0002,2]
[360025943,1746486646195,-633935.84600455,0.0002,2]
[360025944,1746486646205,-386032.742296,0.0002,2]
[360025945,1746486646214,-590895.18095512,0.0002,2]
[360025946,1746486646239,-15943.7746385,0.0002,2]
[360025947,1746486646257,-450.0,0.00019985,2]
[360025948,1746486646268,-191.01223463,0.0002,2]
[360025949,1746486646279,-307.57156581,0.0002,2]
[360025950,1746486646290,-392.61197805,0.0002,2]
[360025951,1746486646303,-3389.49753887,0.0002,2]
[360025952,1746486646314,-21278.74410741,0.0002,2]
[360025953,1746486646331,-450.0,0.00019998,2]
[360025954,1746486646342,-4556.41337032,0.0002,2]
[360025955,1746486646354,-7196.3281801,0.0002,2]
[360025956,1746486646382,-532.63319663,0.0002,2]
[360025957,1746486646394,-1562.12488222,0.0002,2]
[360025958,1746486646405,-503.0,0.0002,2]
[360025959,1746486646415,-4540.0,0.0002,2]
[360025960,1746486646427,-7344.60111962,0.0002,2]
[360025961,1746486646438,-778.70164741,0.0002,2]
[360025965,1746486646493,-735.31162245,0.0002,2]
[360025967,1746486646504,-784.9815,0.0002,2]
[360025968,1746486646515,-1414.157248,0.0002,2]
[360025969,1746486646527,-545.152395,0.0002,2]
[360025970,1746486646539,-1125.9758215,0.0002,2]
[360025971,1746486646550,-472.95900005,0.0002,2]
[360025972,1746486646562,-1126.6565,0.0002,2]
[360025973,1746486646574,-21509.7064,0.0002,2]
[360025974,1746486646586,-107705.29412831,0.0002,2]
[360025975,1746486646597,-500.0,0.0002,2]
[360025976,1746486646610,-7673.50650023,0.0002,2]
[360025981,1746486695419,-353.78326996,0.00019502,2]
[360025983,1746486705875,-607.6079,0.00019502,2]
[360025984,1746486708561,-208.88367675,0.00019502,2]
[360025985,1746486711368,-89.57623329,0.00019502,2]
[360025995,1746486768599,-160.20661553,0.00019502,2]
[360025996,1746486776352,-198.75699536,0.00019502,2]
[360025997,1746486784651,-178.72,0.00019502,2]
[360025998,1746486788475,-219.812822,0.00019502,2]
[360025999,1746486795090,-58.99514411,0.00019502,2]
[360026004,1746486843131,-297.76582936,0.00019502,2]
[360026006,1746486848128,-171.82984164,0.00019502,2]
[360026009,1746486921079,1000.0,0.00019035,2]
[360026045,1746487331781,699.0,0.00030136,120]
[360026048,1746487342847,159.67,0.00018982,2]
[360026057,1746487433406,626.61,0.0001707,2]
[360026058,1746487433663,626.61,0.00019334,2]
[360026060,1746487517636,198.76,0.00018992,2]
[360026088,1746487821085,1651.99549912,0.00030136,120]
[360026097,1746487832075,-178.72,0.00019539,2]
[360026098,1746487832086,-1200.0,0.00019599,2]
[360026099,1746487832096,-300.0,0.00019599,2]
[360026100,1746487832106,-300.0,0.00019599,2]
[360026101,1746487832116,-1102.73702884,0.000196,2]
[360026102,1746487832126,-1135.78638561,0.000196,2]
[360026103,1746487832138,-230.63087466,0.000196,2]
[360026104,1746487832148,-200.0,0.000196,2]
[360026105,1746487832157,-24759.53645241,0.00019794,2]
[360026106,1746487832166,-52612.22602342,0.00019804,2]
[360026107,1746487832176,-500.0,0.00019873,2]
[360026108,1746487832186,-1650.4574,0.00019886,2]
[360026109,1746487832197,-3729.2588,0.00019886,2]
[360026110,1746487832212,-1000.0,0.00019886,2]
[360026111,1746487832222,-207.4,0.00019888,2]
[360026112,1746487832231,-161.85370841,0.00019889,2]
[360026113,1746487832240,-161.85370841,0.00019895,2]
[360026114,1746487832249,-599.8551152,0.00019899,2]
[360026115,1746487832258,-500.0,0.00019899,2]
[360026116,1746487832267,-500.0,0.00019899,2]
[360026117,1746487832276,-500.0,0.00019899,2]
[360026118,1746487832285,-500.0,0.00019899,2]
[360026119,1746487832295,-500.0,0.00019899,2]
[360026120,1746487832304,-500.0,0.00019899,2]
[360026121,1746487832313,-500.0,0.00019899,2]
[360026122,1746487832322,-500.0,0.00019899,2]
[360026123,1746487832331,-500.0,0.00019899,2]
[360026124,1746487832340,-500.0,0.00019899,2]
[360026125,1746487832350,-500.0,0.00019899,2]
[360026126,1746487832359,-500.0,0.00019899,2]
[360026128,1746487832368,-500.0,0.00019899,2]
[360026129,1746487832377,-500.0,0.00019899,2]
[360026131,1746487832386,-500.0,0.00019899,2]
[360026133,1746487832395,-500.0,0.00019899,2]
[360026135,1746487832404,-500.0,0.00019899,2]
[360026136,1746487832413,-500.0,0.00019899,2]
[360026137,1746487832422,-500.0,0.00019899,2]
[360026138,1746487832431,-500.0,0.00019899,2]
[360026139,1746487832440,-500.0,0.00019899,2]
[360026140,1746487832449,-500.0,0.00019899,2]
[360026141,1746487832458,-500.0,0.00019899,2]
[360026143,1746487832468,-500.0,0.00019899,2]
[360026144,1746487832477,-500.0,0.00019899,2]
[360026146,1746487832488,-500.0,0.00019899,2]
[360026148,1746487832496,-500.0,0.00019899,2]
[360026150,1746487832507,-500.0,0.00019899,2]
[360026152,1746487832516,-500.0,0.00019899,2]
[360026154,1746487832525,-500.0,0.00019899,2]
[360026156,1746487832534,-174.68206582,0.00019899,2]
[360026158,1746487832542,-500.0,0.00019899,2]
[360026160,1746487832551,-500.0,0.00019899,2]
[360026163,1746487832560,-500.0,0.00019899,2]
[360026166,1746487832569,-500.0,0.00019899,2]
[360026169,1746487832577,-500.0,0.00019899,2]
[360026172,1746487832586,-500.0,0.00019899,2]
[360026175,1746487832595,-500.0,0.00019899,2]
[360026178,1746487832604,-500.0,0.00019899,2]
[360026181,1746487832613,-500.0,0.00019899,2]
[360026184,1746487832622,-268.33594612,0.00019899,2]
[360026189,1746487832651,-231.66405388,0.00019899,2]
[360026191,1746487832660,-397.49295465,0.00019899,2]
[360026193,1746487832671,-102.50704535,0.00019899,2]
[360026195,1746487832680,-317.46820658,0.00019899,2]
[360026197,1746487832688,-500.0,0.00019899,2]
[360026199,1746487832697,-500.0,0.00019899,2]
[360026201,1746487832706,-500.0,0.00019899,2]
[360026203,1746487832715,-87.13696491,0.00019899,2]
[360026206,1746487832726,-412.86303509,0.00019899,2]
[360026208,1746487832735,-325.96394341,0.00019899,2]
[360026247,1746487838138,-183.49300505,0.00019898,2]
[360026248,1746487838148,-174.03605659,0.00019899,2]
[360026249,1746487838157,-118.90646699,0.00019899,2]
[360026250,1746487838169,-381.09353301,0.00019899,2]
[360026251,1746487838179,-250.00000001,0.00019899,2]
[360026252,1746487838188,-275.0007379,0.000199,2]
[360026253,1746487838197,-73932.09274215,0.000199,2]
[360026254,1746487838209,-9407.19625015,0.000199,2]
[360026255,1746487838219,-161.85370841,0.000199,2]
[360026256,1746487838228,-150.0,0.00019918,7]
[360026257,1746487838237,-160.98,0.0001994,2]
[360026258,1746487838246,-18354.47976079,0.0001995,2]
[360026259,1746487838255,-1000.28527958,0.0001997,2]
[360026260,1746487838264,-514.0,0.0001997,2]
[360026261,1746487838274,-500.0,0.00019973,2]
[360026262,1746487838283,-500.0,0.00019973,2]
[360026263,1746487838293,-500.0,0.00019973,2]
[360026264,1746487838302,-151.0,0.00019974,2]
[360026265,1746487838311,-151.0,0.00019974,2]
[360026266,1746487838320,-668.65185757,0.00019974,2]
[360026267,1746487838330,-160.98,0.00019975,2]
[360026268,1746487838339,-160.98,0.00019975,2]
[360026269,1746487838348,-160.98,0.00019976,2]
[360026270,1746487838357,-160.98,0.00019976,2]
[360026271,1746487838366,-160.98,0.0001998,2]
[360026272,1746487838376,-380.30240514,0.00019984,2]
[360026273,1746487838385,-450.0,0.00019984,2]
[360026274,1746487838394,-450.0,0.00019984,2]
[360026275,1746487838403,-450.0,0.00019984,2]
[360026276,1746487838413,-450.0,0.00019984,2]
[360026277,1746487838422,-450.0,0.00019984,2]
[360026278,1746487838431,-450.0,0.00019984,2]
[360026279,1746487838440,-450.0,0.00019984,2]
[360026280,1746487838450,-450.0,0.00019984,2]
[360026281,1746487838459,-432.74281274,0.00019984,2]
[360026282,1746487838470,-24.97718726,0.00019984,2]
[360026283,1746487838479,-450.0,0.00019984,2]
[360026284,1746487838489,-450.0,0.00019984,2]
[360026285,1746487838498,-450.0,0.00019984,2]
[360026286,1746487838507,-450.0,0.00019984,2]
[360026287,1746487838517,-450.0,0.00019984,2]
[360026288,1746487838526,-450.0,0.00019984,2]
[360026289,1746487838535,-450.0,0.00019984,2]
[360026291,1746487838545,-450.0,0.00019984,2]
[360026292,1746487838555,-450.0,0.00019984,2]
[360026293,1746487838564,-450.0,0.00019984,2]
[360026294,1746487838574,-164.14101702,0.00019985,2]
[360026296,1746487838583,-422.57339251,0.00019985,2]
[360026298,1746487838593,-450.0,0.00019985,2]
[360026300,1746487838601,-450.0,0.00019985,2]
[360026301,1746487838611,-533.68,0.00019985,2]
[360026302,1746487838620,-357.92821415,0.00019985,2]
[360026303,1746487838629,-450.0,0.00019985,2]
[360026304,1746487838638,-450.0,0.00019985,2]
[360026305,1746487838648,-450.0,0.00019985,2]
[360026306,1746487838657,-330.0,0.00019985,2]
[360026307,1746487838666,-285.59,0.00019985,2]
[360026309,1746487838676,-450.0,0.00019985,2]
[360026310,1746487838685,-450.0,0.00019985,2]
[360026311,1746487838695,-450.0,0.00019985,2]
[360026312,1746487838704,-582.97,0.00019985,2]
[360026313,1746487838714,-450.0,0.00019985,2]
[360026315,1746487838723,-450.0,0.00019985,2]
[360026316,1746487838732,-450.0,0.00019985,2]
[360026317,1746487838741,-329.43272766,0.00019985,2]
[360026318,1746487838750,-450.0,0.00019985,2]
[360026319,1746487838759,-450.0,0.00019985,2]
[360026320,1746487838768,-545.13331957,0.00019985,2]
[360026321,1746487838778,-450.0,0.00019985,2]
[360026322,1746487838787,-450.0,0.00019985,2]
[360026323,1746487838796,-450.0,0.00019985,2]
[360026324,1746487838806,-475.76,0.00019985,2]
[360026325,1746487838815,-450.0,0.00019985,2]
[360026326,1746487838825,-463.4,0.00019985,2]
[360026327,1746487838834,-450.0,0.00019985,2]
[360026328,1746487838843,-490.88189455,0.00019985,2]
[360026329,1746487838852,-450.0,0.00019985,2]
[360026330,1746487838862,-450.0,0.00019985,2]
[360026331,1746487838871,-450.0,0.00019985,2]
[360026332,1746487838881,-450.0,0.00019985,2]
[360026333,1746487838890,-450.0,0.00019985,2]
[360026334,1746487838899,-450.0,0.00019985,2]
[360026335,1746487838908,-450.0,0.00019985,2]
[360026336,1746487838918,-450.0,0.00019985,2]
[360026337,1746487838928,-450.0,0.00019985,2]
[360026338,1746487838938,-450.0,0.00019985,2]
[360026339,1746487838947,-450.0,0.00019985,2]
[360026340,1746487838957,-450.0,0.00019985,2]
[360026341,1746487838966,-450.0,0.00019985,2]
[360026342,1746487838975,-450.0,0.00019985,2]
[360026343,1746487838984,-490.41629743,0.00019985,2]
[360026344,1746487838993,-450.0,0.00019985,2]
[360026345,1746487839003,-450.0,0.00019985,2]
[360026346,1746487839012,-3837.52,0.00019985,2]
[360026347,1746487839021,-464.47,0.00019985,2]
[360026348,1746487839030,-450.0,0.00019985,2]
[360026349,1746487839040,-214.80461143,0.00019985,2]
[360026350,1746487839049,-450.0,0.00019985,2]
[360026351,1746487839058,-450.0,0.00019985,2]
[360026352,1746487839068,-450.0,0.00019985,2]
[360026353,1746487839077,-450.0,0.00019985,2]
[360026354,1746487839086,-450.0,0.00019985,2]
[360026355,1746487839095,-450.0,0.00019985,2]
[360026356,1746487839105,-450.0,0.00019985,2]
[360026357,1746487839114,-450.0,0.00019985,2]
[360026358,1746487839281,-160.81223658,0.00019985,2]
[360026359,1746487839291,-450.0,0.00019985,2]
[360026360,1746487839300,-238.0353698,0.00019985,2]
[360026361,1746487839350,-211.9646302,0.00019985,2]
[360026362,1746487839359,-345.5353698,0.00019985,2]
[360026401,1746487840326,-450.0,0.00019984,2]
[360026403,1746487840335,-104.4646302,0.00019985,2]
[360026405,1746487840345,-450.0,0.00019985,2]
[360026407,1746487840354,-450.0,0.00019985,2]
[360026409,1746487840364,-450.0,0.00019985,2]
[360026411,1746487840373,-450.0,0.00019985,2]
[360026413,1746487840382,-450.0,0.00019985,2]
[360026415,1746487840392,-450.0,0.00019985,2]
[360026416,1746487840401,-450.0,0.00019985,2]
[360026418,1746487840411,-450.0,0.00019985,2]
[360026420,1746487840420,-450.0,0.00019985,2]
[360026422,1746487840430,-450.0,0.00019985,2]
[360026424,1746487840439,-450.0,0.00019985,2]
[360026426,1746487840450,-450.0,0.00019985,2]
[360026428,1746487840460,-450.0,0.00019985,2]
[360026430,1746487840469,-450.0,0.00019985,2]
[360026432,1746487840479,-450.0,0.00019985,2]
[360026434,1746487840488,-450.0,0.00019985,2]
[360026436,1746487840497,-450.0,0.00019985,2]
[360026438,1746487840506,-450.0,0.00019985,2]
[360026440,1746487840516,-450.0,0.00019985,2]
[360026442,1746487840525,-302.73161995,0.00019985,2]
[360026444,1746487840536,-147.26838005,0.00019985,2]
[360026446,1746487840546,-450.0,0.00019985,2]
[360026448,1746487840555,-450.0,0.00019985,2]
[360026450,1746487840564,-450.0,0.00019985,2]
[360026452,1746487840573,-450.0,0.00019985,2]
[360026454,1746487840583,-450.0,0.00019985,2]
[360026455,1746487840592,-6089.14118708,0.00019985,2]
[360026456,1746487840603,-1482.80881292,0.00019985,2]
[360026457,1746487840612,-450.0,0.00019985,2]
[360026459,1746487840622,-450.0,0.00019985,2]
[360026460,1746487840631,-450.0,0.00019985,2]
[360026462,1746487840641,-1187.648,0.00019986,2]
[360026464,1746487840651,-457.7787879,0.00019986,2]
[360026467,1746487840661,-7003.3348107,0.00019986,2]
[360026469,1746487840670,-22792.8269044,0.00019986,2]
[360026471,1746487840679,-62129.7407651,0.00019986,2]
[360026473,1746487840689,-2651.5523805,0.00019986,2]
[360026475,1746487840698,-26603.66270199,0.0001999,2]
[360026477,1746487840707,-500.0,0.00019997,2]
[360026479,1746487840716,-470.0,0.00019997,2]
[360026481,1746487840727,-450.0,0.00019997,2]
[360026483,1746487840735,-450.0,0.00019997,2]
[360026485,1746487840745,-450.0,0.00019997,2]
[360026487,1746487840754,-450.0,0.00019997,2]
[360026489,1746487840763,-450.0,0.00019997,2]
[360026491,1746487840772,-450.0,0.00019997,2]
[360026493,1746487840783,-450.0,0.00019997,2]
[360026495,1746487840792,-500.0,0.00019997,2]
[360026497,1746487840801,-450.0,0.00019997,2]
[360026499,1746487840811,-450.0,0.00019997,2]
[360026501,1746487840820,-450.0,0.00019997,2]
[360026503,1746487840829,-450.0,0.00019997,2]
[360026505,1746487840839,-450.0,0.00019997,2]
[360026507,1746487840848,-450.0,0.00019997,2]
[360026509,1746487840860,-450.0,0.00019997,2]
[360026511,1746487840870,-450.0,0.00019997,2]
[360026513,1746487840879,-450.0,0.00019997,2]
[360026515,1746487840890,-450.0,0.00019997,2]
[360026517,1746487840900,-450.0,0.00019997,2]
[360026519,1746487840910,-450.0,0.00019997,2]
[360026521,1746487840920,-450.0,0.00019997,2]
[360026523,1746487840929,-450.0,0.00019997,2]
[360026525,1746487840939,-450.0,0.00019997,2]
[360026527,1746487840948,-450.0,0.00019997,2]
[360026529,1746487840958,-450.0,0.00019997,2]
[360026531,1746487840967,-450.0,0.00019997,2]
[360026533,1746487840977,-450.0,0.00019997,2]
[360026535,1746487840987,-450.0,0.00019997,2]
[360026537,1746487840996,-450.0,0.00019997,2]
[360026539,1746487841006,-470.0,0.00019997,2]
[360026541,1746487841015,-450.0,0.00019997,2]
[360026543,1746487841024,-450.0,0.00019997,2]
[360026545,1746487841033,-450.0,0.00019997,2]
[360026546,1746487841043,-450.0,0.00019997,2]
[360026548,1746487841052,-581.40503227,0.00019997,2]
[360026550,1746487841061,-450.0,0.00019997,2]
[360026552,1746487841071,-450.0,0.00019997,2]
[360026554,1746487841080,-450.0,0.00019998,2]
[360026556,1746487841090,-450.0,0.00019998,2]
[360026558,1746487841099,-450.0,0.00019998,2]
[360026560,1746487841108,-450.0,0.00019998,2]
[360026561,1746487841117,-281.89216721,0.00019998,2]
[360026563,1746487841127,-450.0,0.00019998,2]
[360026565,1746487841137,-192.01259687,0.00019998,2]
[360026567,1746487841147,-500.0,0.00019998,2]
[360026569,1746487841157,-500.0,0.00019998,2]
[360026572,1746487841167,-500.0,0.00019998,2]
[360026574,1746487841178,-500.0,0.00019998,2]
[360026576,1746487841187,-500.0,0.00019998,2]
[360026578,1746487841197,-312.93512909,0.00019998,2]
[360026580,1746487841209,-450.0,0.00019998,2]
[360026582,1746487841219,-450.0,0.00019998,2]
[360026584,1746487841230,-450.0,0.00019998,2]
[360026586,1746487841239,-450.0,0.00019998,2]
[360026588,1746487841249,-450.0,0.00019998,2]
[360026589,1746487841259,-450.0,0.00019998,2]
[360026591,1746487841269,-450.0,0.00019998,2]
[360026594,1746487841279,-450.0,0.00019998,2]
[360026596,1746487841290,-450.0,0.00019998,2]
[360026598,1746487841302,-450.0,0.00019998,2]
[360026599,1746487841311,-450.0,0.00019998,2]
[360026600,1746487841320,-450.0,0.00019998,2]
[360026601,1746487841329,-450.0,0.00019998,2]
[360026602,1746487841338,-561.02,0.00019998,2]
[360026604,1746487841348,-450.0,0.00019998,2]
[360026607,1746487841357,-300.0,0.00019998,2]
[360026608,1746487841366,-584.84,0.00019998,2]
[360026611,1746487841377,-450.0,0.00019998,2]
[360026613,1746487841387,-479.20352983,0.00019998,2]
[360026615,1746487841396,-450.0,0.00019998,2]
[360026617,1746487841406,-482.04692344,0.00019998,2]
[360026619,1746487841416,-450.0,0.00019998,2]
[360026621,1746487841425,-473.97622075,0.00019998,2]
[360026623,1746487841436,-450.0,0.00019998,2]
[360026625,1746487841445,-450.0,0.00019998,2]
[360026627,1746487841455,-450.0,0.00019998,2]
[360026629,1746487841464,-450.0,0.00019998,2]
[360026631,1746487841473,-450.0,0.00019998,2]
[360026633,1746487841483,-450.0,0.00019998,2]
[360026635,1746487841493,-450.0,0.00019998,2]
[360026637,1746487841502,-450.0,0.00019998,2]
[360026639,1746487841511,-450.0,0.00019998,2]
[360026641,1746487841520,-450.0,0.00019998,2]
[360026643,1746487841529,-150.0,0.00019998,2]
[360026647,1746487841539,-450.0,0.00019998,2]
[360026650,1746487841548,-450.0,0.00019998,2]
[360026652,1746487841557,-450.0,0.00019998,2]
[360026655,1746487841567,-450.0,0.00019998,2]
[360026658,1746487841576,-524.33849343,0.00019998,2]
[360026661,1746487841585,-450.0,0.00019998,2]
[360026665,1746487841595,-564.89707459,0.00019998,2]
[360026668,1746487841604,-510.92426429,0.00019998,2]